[Event "*** Titled Tuesday Blitz"]
[Site "Chess.com"]
[Date "2020.04.07"]
[Round "1"]
[White "MusicCityMaster"]
[Black "Atakishiyev04"]
[Result "0-1"]
[WhiteElo "2315"]
[BlackElo "2648"]
[TimeControl "180+1"]
[EndTime "13:06:08 PDT"]
[Termination "Atakishiyev04 won by resignation"]

1. d4 {[%clk 0:03:00.7]} 1... Nf6 {[%clk 0:02:59.8]} 2. c4 {[%clk 0:03:00.1]}
2... g6 {[%clk 0:03:00]} 3. Nc3 {[%clk 0:03:00.3]} 3... d5 {[%clk 0:03:00.5]} 4.
Bf4 {[%clk 0:02:59.8]} 4... Bg7 {[%clk 0:03:00.2]} 5. Rc1 {[%clk 0:02:59.9]}
5... Nh5 {[%clk 0:02:59.6]} 6. Bd2 {[%clk 0:02:59]} 6... c5 {[%clk 0:02:59]} 7.
dxc5 {[%clk 0:02:42.5]} 7... d4 {[%clk 0:02:58.8]} 8. Nd5 {[%clk 0:02:33.8]}
8... Nc6 {[%clk 0:02:58.4]} 9. Nf3 {[%clk 0:02:24.9]} 9... O-O {[%clk 0:02:56]}
10. g3 {[%clk 0:02:20.2]} 10... e6 {[%clk 0:02:45.9]} 11. Nb4 {[%clk 0:02:19.4]}
11... Bd7 {[%clk 0:02:41.9]} 12. Bg2 {[%clk 0:02:12.9]} 12... a5 {[%clk
0:02:33.8]} 13. Nxc6 {[%clk 0:02:07.9]} 13... Bxc6 {[%clk 0:02:34.7]} 14. O-O
{[%clk 0:02:07.7]} 14... Qe7 {[%clk 0:02:31.8]} 15. Ng5 {[%clk 0:01:39.4]} 15...
Qxc5 {[%clk 0:02:29.4]} 16. Ne4 {[%clk 0:01:36]} 16... Bxe4 {[%clk 0:02:24.3]}
17. Bxe4 {[%clk 0:01:34.7]} 17... f5 {[%clk 0:02:24.8]} 18. Bf3 {[%clk
0:01:24.9]} 18... Nf6 {[%clk 0:02:25.3]} 19. Qb3 {[%clk 0:01:15.7]} 19... e5
{[%clk 0:02:18.9]} 20. Bd5+ {[%clk 0:01:06.4]} 20... Kh8 {[%clk 0:02:16.2]} 21.
Rc2 {[%clk 0:00:51.1]} 21... Rab8 {[%clk 0:02:12.9]} 22. Qa4 {[%clk 0:00:45.2]}
22... b5 {[%clk 0:02:02.3]} 23. Qa3 {[%clk 0:00:24.6]} 23... b4 {[%clk
0:01:58.9]} 24. Qb3 {[%clk 0:00:22.2]} 24... e4 {[%clk 0:01:55.6]} 25. Bxe4
{[%clk 0:00:21.9]} 25... fxe4 {[%clk 0:01:48.8]} 26. Bf4 {[%clk 0:00:21.3]}
26... Rbd8 {[%clk 0:01:45.8]} 27. Rd1 {[%clk 0:00:20.4]} 27... Ng4 {[%clk
0:01:39.1]} 28. h3 {[%clk 0:00:18.8]} 28... Ne5 {[%clk 0:01:38.7]} 29. Kg2
{[%clk 0:00:17]} 29... Nc6 {[%clk 0:01:38.4]} 30. Qa4 {[%clk 0:00:16]} 30... g5
{[%clk 0:01:34.6]} 31. Bc1 {[%clk 0:00:15.2]} 31... Rd6 {[%clk 0:01:32.4]} 32.
Qb5 {[%clk 0:00:14.8]} 32... Rf5 {[%clk 0:01:29.4]} 33. Qb7 {[%clk 0:00:13.3]}
33... Rdf6 {[%clk 0:01:25]} 34. Qc8+ {[%clk 0:00:11.9]} 34... Rf8 {[%clk
0:01:24.9]} 35. Qd7 {[%clk 0:00:10.8]} 35... Rxf2+ {[%clk 0:01:24.6]} 36. Kg1
{[%clk 0:00:10.9]} 36... Qe5 {[%clk 0:01:24.3]} 0-1

[Event "*** Titled Tuesday Blitz"]
[Site "Chess.com"]
[Date "2020.04.07"]
[Round "1"]
[White "nabukatnezarr"]
[Black "esteban062000"]
[Result "1-0"]
[WhiteElo "2543"]
[BlackElo "2157"]
[TimeControl "180+1"]
[EndTime "13:06:09 PDT"]
[Termination "nabukatnezarr won by resignation"]

1. d4 {[%clk 0:03:00.9]} 1... Nf6 {[%clk 0:02:57.5]} 2. Bf4 {[%clk 0:03:00.9]}
2... e6 {[%clk 0:02:54]} 3. e3 {[%clk 0:03:00.3]} 3... c5 {[%clk 0:02:52.9]} 4.
c3 {[%clk 0:03:00.6]} 4... d5 {[%clk 0:02:52.5]} 5. Nd2 {[%clk 0:03:01]} 5...
Nc6 {[%clk 0:02:52.6]} 6. Ngf3 {[%clk 0:03:00.6]} 6... Be7 {[%clk 0:02:49.9]} 7.
Bg3 {[%clk 0:02:57.2]} 7... O-O {[%clk 0:02:49.6]} 8. Ne5 {[%clk 0:02:57.6]}
8... Nxe5 {[%clk 0:02:32.8]} 9. dxe5 {[%clk 0:02:58.5]} 9... Nd7 {[%clk
0:02:32.6]} 10. c4 {[%clk 0:02:57.9]} 10... Nb6 {[%clk 0:02:31.2]} 11. Be2
{[%clk 0:02:52.6]} 11... f6 {[%clk 0:02:30.8]} 12. O-O {[%clk 0:02:50.2]} 12...
fxe5 {[%clk 0:02:27.5]} 13. Bxe5 {[%clk 0:02:51.1]} 13... Bf6 {[%clk 0:02:27.4]}
14. Bxf6 {[%clk 0:02:45.8]} 14... Rxf6 {[%clk 0:02:20.4]} 15. Qc2 {[%clk
0:02:46.7]} 15... Rh6 {[%clk 0:01:51.8]} 16. cxd5 {[%clk 0:02:36.8]} 16... Qd6
{[%clk 0:01:21.8]} 17. g3 {[%clk 0:02:36.4]} 17... exd5 {[%clk 0:01:17.6]} 18.
Rac1 {[%clk 0:02:36.8]} 18... Bh3 {[%clk 0:00:46.8]} 19. Rfd1 {[%clk 0:02:35.4]}
19... Rc8 {[%clk 0:00:46.4]} 20. Ne4 {[%clk 0:02:34]} 20... Qg6 {[%clk
0:00:23.1]} 21. Nd2 {[%clk 0:02:12.9]} 21... Bf5 {[%clk 0:00:23.1]} 22. Qb3
{[%clk 0:02:00.7]} 22... c4 {[%clk 0:00:22.8]} 23. Qa3 {[%clk 0:01:59.2]} 23...
Bg4 {[%clk 0:00:21.7]} 24. Bxg4 {[%clk 0:01:54.1]} 24... Qxg4 {[%clk 0:00:22.6]}
25. Qxa7 {[%clk 0:01:50.5]} 25... Qh5 {[%clk 0:00:19]} 26. Nf1 {[%clk
0:01:50.2]} 26... Rf8 {[%clk 0:00:16.1]} 27. Rd4 {[%clk 0:01:48.7]} 27... Qe2
{[%clk 0:00:15.1]} 28. Rd2 {[%clk 0:01:39.5]} 28... Qf3 {[%clk 0:00:11.8]} 29.
Qxb7 {[%clk 0:01:36.2]} 29... Qf5 {[%clk 0:00:10.6]} 30. b3 {[%clk 0:01:26.2]}
30... c3 {[%clk 0:00:10]} 31. Rxc3 {[%clk 0:01:24.3]} 31... Qh5 {[%clk
0:00:09.5]} 32. Rc6 {[%clk 0:01:21.6]} 32... Rhf6 {[%clk 0:00:03.5]} 33. Qxb6
{[%clk 0:01:16.7]} 33... Rxc6 {[%clk 0:00:02.9]} 34. Qxc6 {[%clk 0:01:16.1]} 1-0

[Event "*** Titled Tuesday Blitz"]
[Site "Chess.com"]
[Date "2020.04.07"]
[Round "1"]
[White "igorcadilhac"]
[Black "kleinebeer98"]
[Result "0-1"]
[WhiteElo "2365"]
[BlackElo "2713"]
[TimeControl "180+1"]
[EndTime "13:06:10 PDT"]
[Termination "kleinebeer98 won by resignation"]

1. e4 {[%clk 0:03:00.9]} 1... e5 {[%clk 0:02:59.6]} 2. Nf3 {[%clk 0:03:01.1]}
2... Nc6 {[%clk 0:03:00.1]} 3. Bb5 {[%clk 0:03:00.8]} 3... f5 {[%clk 0:03:00.4]}
4. Nc3 {[%clk 0:02:59.5]} 4... fxe4 {[%clk 0:02:59.8]} 5. Nxe4 {[%clk
0:03:00.4]} 5... Nf6 {[%clk 0:03:00.1]} 6. Nxf6+ {[%clk 0:02:59]} 6... Qxf6
{[%clk 0:03:01]} 7. O-O {[%clk 0:02:57.3]} 7... Be7 {[%clk 0:02:58.9]} 8. d3
{[%clk 0:02:33.3]} 8... O-O {[%clk 0:02:47.4]} 9. Bg5 {[%clk 0:02:31.7]} 9...
Qf5 {[%clk 0:02:33.1]} 10. Bxc6 {[%clk 0:02:24.1]} 10... Bxg5 {[%clk 0:02:32.8]}
11. Be4 {[%clk 0:02:23.9]} 11... Qf6 {[%clk 0:02:31.8]} 12. Qe2 {[%clk
0:01:53.1]} 12... d6 {[%clk 0:02:27.7]} 13. Nxg5 {[%clk 0:01:43.3]} 13... Qxg5
{[%clk 0:02:27.7]} 14. Rae1 {[%clk 0:01:36.6]} 14... c6 {[%clk 0:02:23.1]} 15.
c3 {[%clk 0:01:31.7]} 15... Be6 {[%clk 0:02:18.2]} 16. d4 {[%clk 0:01:30.8]}
16... Bxa2 {[%clk 0:02:09.4]} 17. dxe5 {[%clk 0:01:30.5]} 17... dxe5 {[%clk
0:02:05.9]} 18. Qc2 {[%clk 0:01:28.9]} 18... Bc4 {[%clk 0:01:47.8]} 19. Bxh7+
{[%clk 0:01:28.5]} 19... Kh8 {[%clk 0:01:48]} 20. Bd3 {[%clk 0:01:17.4]} 20...
Bd5 {[%clk 0:01:48.2]} 21. Be4 {[%clk 0:01:14.5]} 21... Rf4 {[%clk 0:01:39.2]}
22. Bxd5 {[%clk 0:00:52.4]} 22... cxd5 {[%clk 0:01:40.1]} 23. Re3 {[%clk
0:00:52.4]} 23... e4 {[%clk 0:01:29.1]} 24. c4 {[%clk 0:00:41]} 24... Rc8 {[%clk
0:01:26.1]} 25. Rh3+ {[%clk 0:00:15.4]} 25... Kg8 {[%clk 0:01:25.4]} 26. Rc3
{[%clk 0:00:14.9]} 26... d4 {[%clk 0:01:24.8]} 27. Rg3 {[%clk 0:00:14.7]} 27...
Qf6 {[%clk 0:01:20.3]} 28. c5 {[%clk 0:00:14.3]} 28... Rf8 {[%clk 0:01:15.8]}
29. Qc4+ {[%clk 0:00:10.1]} 29... Rf7 {[%clk 0:01:15.3]} 30. b4 {[%clk
0:00:08.8]} 30... Rxf2 {[%clk 0:01:14.8]} 0-1

[Event "*** Titled Tuesday Blitz"]
[Site "Chess.com"]
[Date "2020.04.07"]
[Round "1"]
[White "DrMelekess"]
[Black "rynos0411"]
[Result "1-0"]
[WhiteElo "2710"]
[BlackElo "2366"]
[TimeControl "180+1"]
[EndTime "13:06:10 PDT"]
[Termination "DrMelekess won by resignation"]

1. d4 {[%clk 0:02:44.5]} 1... Nf6 {[%clk 0:02:58.4]} 2. Nf3 {[%clk 0:02:44.9]}
2... e6 {[%clk 0:02:58.3]} 3. c4 {[%clk 0:02:44.6]} 3... d5 {[%clk 0:02:55.6]}
4. Nc3 {[%clk 0:02:44.2]} 4... Bb4 {[%clk 0:02:52.9]} 5. Qa4+ {[%clk 0:02:42.3]}
5... Nc6 {[%clk 0:02:52.6]} 6. Bg5 {[%clk 0:02:42.7]} 6... h6 {[%clk 0:02:50.8]}
7. Bxf6 {[%clk 0:02:39.5]} 7... Qxf6 {[%clk 0:02:50.8]} 8. e3 {[%clk 0:02:40.4]}
8... O-O {[%clk 0:02:48.6]} 9. Rc1 {[%clk 0:02:39.9]} 9... Bd7 {[%clk
0:02:46.3]} 10. Qc2 {[%clk 0:02:39.2]} 10... Rad8 {[%clk 0:02:39.5]} 11. a3
{[%clk 0:02:37]} 11... Bxc3+ {[%clk 0:02:35.4]} 12. Qxc3 {[%clk 0:02:37.9]}
12... g5 {[%clk 0:02:33.3]} 13. h3 {[%clk 0:02:35.6]} 13... Qg7 {[%clk
0:02:31.8]} 14. Be2 {[%clk 0:02:34.5]} 14... Rfe8 {[%clk 0:02:31.5]} 15. b4
{[%clk 0:02:29.5]} 15... Ne7 {[%clk 0:02:19.7]} 16. Ne5 {[%clk 0:02:28.9]} 16...
c6 {[%clk 0:02:13.3]} 17. Bh5 {[%clk 0:02:28.7]} 17... Rf8 {[%clk 0:02:07.9]}
18. O-O {[%clk 0:02:28.4]} 18... Bc8 {[%clk 0:02:05]} 19. f4 {[%clk 0:02:26.8]}
19... f6 {[%clk 0:02:04.2]} 20. Nd3 {[%clk 0:02:24.6]} 20... Nf5 {[%clk
0:02:02.6]} 21. Rfe1 {[%clk 0:02:14.7]} 21... Ng3 {[%clk 0:01:57]} 22. Bf3
{[%clk 0:02:14.1]} 22... Ne4 {[%clk 0:01:54.5]} 23. Qc2 {[%clk 0:02:10.2]} 23...
Kh8 {[%clk 0:01:52.4]} 24. Rf1 {[%clk 0:02:08.1]} 24... Ng3 {[%clk 0:01:49.8]}
25. Rfe1 {[%clk 0:02:07.4]} 25... Nf5 {[%clk 0:01:49.8]} 26. fxg5 {[%clk
0:01:59.6]} 26... hxg5 {[%clk 0:01:45.8]} 27. Qf2 {[%clk 0:01:58.6]} 27... e5
{[%clk 0:01:39]} 28. cxd5 {[%clk 0:01:56.5]} 28... cxd5 {[%clk 0:01:36.6]} 29.
Bg4 {[%clk 0:01:55.6]} 29... Nd6 {[%clk 0:01:25.6]} 30. Bxc8 {[%clk 0:01:54.2]}
30... Rxc8 {[%clk 0:01:25.2]} 31. Rxc8 {[%clk 0:01:54]} 31... Rxc8 {[%clk
0:01:24]} 32. dxe5 {[%clk 0:01:50.9]} 32... fxe5 {[%clk 0:01:24]} 33. Qg3 {[%clk
0:01:51.1]} 33... Re8 {[%clk 0:01:20.5]} 34. Rf1 {[%clk 0:01:48.9]} 34... Ne4
{[%clk 0:01:14.5]} 35. Qg4 {[%clk 0:01:48.3]} 35... Kg8 {[%clk 0:01:10.6]} 36.
Rf5 {[%clk 0:01:39.2]} 36... Re7 {[%clk 0:00:49.1]} 37. Nf2 {[%clk 0:01:35.8]}
37... Nxf2 {[%clk 0:00:44.8]} 38. Rxf2 {[%clk 0:01:32.3]} 38... Rf7 {[%clk
0:00:33.6]} 39. Qe6 {[%clk 0:01:31.2]} 39... Kf8 {[%clk 0:00:32.4]} 40. Qc8+
{[%clk 0:01:28.2]} 40... Ke7 {[%clk 0:00:32.9]} 41. Qxb7+ {[%clk 0:01:29.1]}
41... Ke6 {[%clk 0:00:33.3]} 42. Qc6+ {[%clk 0:01:28.2]} 42... Ke7 {[%clk
0:00:33.7]} 43. Qb7+ {[%clk 0:01:26.1]} 43... Ke6 {[%clk 0:00:33.6]} 44. Qa6+
{[%clk 0:01:26.2]} 44... Ke7 {[%clk 0:00:31.6]} 45. Qxa7+ {[%clk 0:01:27.1]}
45... Kf8 {[%clk 0:00:32]} 46. Qxf7+ {[%clk 0:01:22.9]} 1-0

[Event "*** Titled Tuesday Blitz"]
[Site "Chess.com"]
[Date "2020.04.07"]
[Round "1"]
[White "UmutErdemGunduz"]
[Black "MikeKorovin"]
[Result "0-1"]
[WhiteElo "2404"]
[BlackElo "2762"]
[TimeControl "180+1"]
[EndTime "13:06:11 PDT"]
[Termination "MikeKorovin won by resignation"]

1. e4 {[%clk 0:03:00.9]} 1... Nc6 {[%clk 0:03:00.9]} 2. Nf3 {[%clk 0:03:00.7]}
2... e6 {[%clk 0:03:00.3]} 3. d4 {[%clk 0:02:58.6]} 3... d5 {[%clk 0:03:00.8]}
4. Nc3 {[%clk 0:02:55.7]} 4... Bb4 {[%clk 0:02:59.7]} 5. e5 {[%clk 0:02:43.5]}
5... Nge7 {[%clk 0:02:59.3]} 6. Bd3 {[%clk 0:02:40.3]} 6... Nf5 {[%clk
0:02:58.7]} 7. a3 {[%clk 0:02:35.4]} 7... Be7 {[%clk 0:02:58.3]} 8. Ne2 {[%clk
0:02:30.5]} 8... h5 {[%clk 0:02:55.7]} 9. h3 {[%clk 0:02:23.1]} 9... g5 {[%clk
0:02:47.8]} 10. c4 {[%clk 0:02:10.9]} 10... dxc4 {[%clk 0:02:40.2]} 11. Bxc4
{[%clk 0:02:11]} 11... Rg8 {[%clk 0:02:39.7]} 12. g4 {[%clk 0:02:06.3]} 12...
Nh6 {[%clk 0:02:30.1]} 13. Qd3 {[%clk 0:01:45]} 13... Rh8 {[%clk 0:01:55.5]} 14.
Be3 {[%clk 0:01:36.9]} 14... a6 {[%clk 0:01:46.2]} 15. O-O-O {[%clk 0:01:36.1]}
15... b5 {[%clk 0:01:46.1]} 16. Ba2 {[%clk 0:01:34.2]} 16... Bb7 {[%clk
0:01:46.3]} 17. d5 {[%clk 0:01:22.7]} 17... Na5 {[%clk 0:01:44.2]} 18. Qc3
{[%clk 0:01:11.9]} 18... Nc4 {[%clk 0:01:41.9]} 19. dxe6 {[%clk 0:01:10.2]}
19... Bxf3 {[%clk 0:01:38.4]} 20. Rxd8+ {[%clk 0:01:08.8]} 20... Rxd8 {[%clk
0:01:36.8]} 21. exf7+ {[%clk 0:01:04.6]} 21... Kf8 {[%clk 0:01:35]} 22. Bxc4
{[%clk 0:01:03.2]} 22... bxc4 {[%clk 0:01:33.8]} 23. Qxc4 {[%clk 0:01:03.3]}
23... Bxh1 {[%clk 0:01:29.4]} 24. e6 {[%clk 0:00:54]} 24... hxg4 {[%clk
0:01:12.8]} 25. hxg4 {[%clk 0:00:51.8]} 25... Bd5 {[%clk 0:01:11]} 26. Qc3
{[%clk 0:00:41.1]} 26... Nxf7 {[%clk 0:01:09.7]} 27. exf7 {[%clk 0:00:39.4]}
27... Kxf7 {[%clk 0:01:10.6]} 28. Nd4 {[%clk 0:00:36.5]} 28... Rh1+ {[%clk
0:01:08.4]} 29. Kc2 {[%clk 0:00:37]} 29... Be4+ {[%clk 0:00:55.8]} 30. Kb3
{[%clk 0:00:37.1]} 30... c5 {[%clk 0:00:54.2]} 31. Nf5 {[%clk 0:00:31.9]} 31...
Rd3 {[%clk 0:00:51.6]} 0-1

[Event "*** Titled Tuesday Blitz"]
[Site "Chess.com"]
[Date "2020.04.07"]
[Round "1"]
[White "Antipov_Mikhail_Al"]
[Black "marcodobrikov"]
[Result "1-0"]
[WhiteElo "2961"]
[BlackElo "2480"]
[TimeControl "180+1"]
[EndTime "13:06:12 PDT"]
[Termination "Antipov_Mikhail_Al won by resignation"]

1. e4 {[%clk 0:03:00.9]} 1... c5 {[%clk 0:02:58.9]} 2. Nf3 {[%clk 0:02:57.4]}
2... d6 {[%clk 0:02:58.8]} 3. d4 {[%clk 0:02:45.1]} 3... cxd4 {[%clk 0:02:59.7]}
4. Nxd4 {[%clk 0:02:46]} 4... Nf6 {[%clk 0:02:58.1]} 5. f3 {[%clk 0:02:28.6]}
5... e5 {[%clk 0:02:56.7]} 6. Nb3 {[%clk 0:02:28.3]} 6... Be6 {[%clk 0:02:55.3]}
7. c4 {[%clk 0:02:22.4]} 7... Nbd7 {[%clk 0:02:52.1]} 8. Be3 {[%clk 0:02:21.7]}
8... Rc8 {[%clk 0:02:43.6]} 9. Nc3 {[%clk 0:02:21.9]} 9... Bxc4 {[%clk
0:02:41.9]} 10. Bxc4 {[%clk 0:02:22.8]} 10... Rxc4 {[%clk 0:02:42.5]} 11. g4
{[%clk 0:02:23.4]} 11... Nb6 {[%clk 0:02:34.2]} 12. g5 {[%clk 0:02:18.2]} 12...
Nfd7 {[%clk 0:02:33.7]} 13. Na5 {[%clk 0:01:49.2]} 13... Rc7 {[%clk 0:02:21.7]}
14. Nb5 {[%clk 0:01:44.3]} 14... Nc4 {[%clk 0:02:07.4]} 15. Rc1 {[%clk
0:01:23.4]} 15... Nxe3 {[%clk 0:01:52.7]} 16. Nxc7+ {[%clk 0:01:22.5]} 16...
Qxc7 {[%clk 0:01:39.6]} 17. Rxc7 {[%clk 0:01:23.4]} 17... Nxd1 {[%clk 0:01:40]}
18. Rc8+ {[%clk 0:01:23.4]} 18... Ke7 {[%clk 0:01:39.8]} 19. Kxd1 {[%clk
0:01:24.3]} 19... g6 {[%clk 0:01:35.9]} 20. Nxb7 {[%clk 0:01:19.4]} 20... Bg7
{[%clk 0:01:35.5]} 21. Rxh8 {[%clk 0:01:18.9]} 21... Bxh8 {[%clk 0:01:36.4]} 22.
Ke2 {[%clk 0:01:19.6]} 22... Nb6 {[%clk 0:01:29.1]} 23. Rc1 {[%clk 0:01:17.7]}
23... Kd7 {[%clk 0:01:28.1]} 24. b3 {[%clk 0:01:12.6]} 24... f6 {[%clk
0:01:28.3]} 25. h4 {[%clk 0:01:12.1]} 25... Bg7 {[%clk 0:01:27.2]} 26. Rd1
{[%clk 0:01:09.5]} 26... Nc8 {[%clk 0:01:25.5]} 27. Nc5+ {[%clk 0:01:09.7]}
27... Ke7 {[%clk 0:01:24.9]} 28. Nd3 {[%clk 0:01:07.3]} 28... h6 {[%clk
0:01:22.6]} 29. Nb4 {[%clk 0:01:04.7]} 29... fxg5 {[%clk 0:01:19]} 30. hxg5
{[%clk 0:01:05.6]} 30... hxg5 {[%clk 0:01:19]} 31. Rc1 {[%clk 0:01:05.4]} 31...
Kd7 {[%clk 0:01:18]} 32. Nd5 {[%clk 0:01:01.3]} 32... Bf8 {[%clk 0:01:10.5]} 33.
Rc7+ {[%clk 0:01:02.2]} 33... Kd8 {[%clk 0:01:09.8]} 34. Rh7 {[%clk 0:01:02.7]}
34... Ne7 {[%clk 0:01:06.3]} 35. Nxe7 {[%clk 0:00:59]} 35... Bxe7 {[%clk
0:01:06]} 36. Kd3 {[%clk 0:00:59.9]} 36... Kd7 {[%clk 0:01:02]} 37. Kc4 {[%clk
0:00:59.8]} 37... Ke6 {[%clk 0:01:02.9]} 38. b4 {[%clk 0:00:58.7]} 38... a6
{[%clk 0:01:01]} 39. a4 {[%clk 0:00:58.6]} 39... Bd8 {[%clk 0:01:00.5]} 40. a5
{[%clk 0:00:57.6]} 40... g4 {[%clk 0:00:57.4]} 41. fxg4 {[%clk 0:00:58.5]} 41...
Kf6 {[%clk 0:00:58.3]} 42. Rd7 {[%clk 0:00:58.1]} 42... Be7 {[%clk 0:00:57.6]}
43. b5 {[%clk 0:00:57.9]} 43... axb5+ {[%clk 0:00:56.9]} 44. Kxb5 {[%clk
0:00:58.8]} 1-0

[Event "*** Titled Tuesday Blitz"]
[Site "Chess.com"]
[Date "2020.04.07"]
[Round "1"]
[White "korbul"]
[Black "Resignify"]
[Result "1-0"]
[WhiteElo "2560"]
[BlackElo "2198"]
[TimeControl "180+1"]
[EndTime "13:06:16 PDT"]
[Termination "korbul won on time"]

1. d4 {[%clk 0:03:00.9]} 1... Nf6 {[%clk 0:02:59.3]} 2. c4 {[%clk 0:03:00.2]}
2... e6 {[%clk 0:02:59.2]} 3. Nf3 {[%clk 0:02:59.8]} 3... c5 {[%clk 0:02:59]} 4.
d5 {[%clk 0:02:59.2]} 4... exd5 {[%clk 0:02:59.1]} 5. cxd5 {[%clk 0:02:58.7]}
5... d6 {[%clk 0:02:59.4]} 6. Nc3 {[%clk 0:02:58.7]} 6... g6 {[%clk 0:02:59.7]}
7. Bf4 {[%clk 0:02:58.5]} 7... a6 {[%clk 0:02:55]} 8. e4 {[%clk 0:02:58]} 8...
Bg7 {[%clk 0:02:51.2]} 9. Bd3 {[%clk 0:02:49.9]} 9... b5 {[%clk 0:02:46]} 10.
O-O {[%clk 0:02:48.8]} 10... O-O {[%clk 0:02:42.2]} 11. h3 {[%clk 0:02:46]}
11... Qe7 {[%clk 0:02:34.5]} 12. a4 {[%clk 0:02:43.8]} 12... b4 {[%clk
0:02:31.9]} 13. Nb1 {[%clk 0:02:41.5]} 13... Nfd7 {[%clk 0:02:14.1]} 14. Qc2
{[%clk 0:02:37.2]} 14... Ne5 {[%clk 0:02:05.3]} 15. Nxe5 {[%clk 0:02:36]} 15...
Bxe5 {[%clk 0:02:05.3]} 16. Bxe5 {[%clk 0:02:36.2]} 16... Qxe5 {[%clk
0:02:05.4]} 17. Nd2 {[%clk 0:02:35.8]} 17... Nd7 {[%clk 0:01:59.6]} 18. Nc4
{[%clk 0:02:35]} 18... Qe7 {[%clk 0:01:56.5]} 19. f4 {[%clk 0:02:34.5]} 19... a5
{[%clk 0:01:45.3]} 20. Rae1 {[%clk 0:02:32.9]} 20... Ba6 {[%clk 0:01:44.4]} 21.
b3 {[%clk 0:02:11.7]} 21... Bxc4 {[%clk 0:01:28.6]} 22. Bxc4 {[%clk 0:02:11.7]}
22... f6 {[%clk 0:01:13.1]} 23. Re2 {[%clk 0:02:10.2]} 23... Kg7 {[%clk
0:01:10.5]} 24. Rfe1 {[%clk 0:02:09.4]} 24... Ra7 {[%clk 0:00:54.1]} 25. Bb5
{[%clk 0:02:08.4]} 25... Rf7 {[%clk 0:00:48.4]} 26. Qb2 {[%clk 0:02:05.4]} 26...
Qf8 {[%clk 0:00:36.3]} 27. g3 {[%clk 0:02:02.7]} 27... Re7 {[%clk 0:00:33.9]}
28. h4 {[%clk 0:02:01.9]} 28... h5 {[%clk 0:00:32.9]} 29. Kg2 {[%clk 0:01:56.5]}
29... Kh7 {[%clk 0:00:29.2]} 30. Qc2 {[%clk 0:01:50.2]} 30... Qf7 {[%clk
0:00:24.5]} 31. Qd3 {[%clk 0:01:49.5]} 31... Nf8 {[%clk 0:00:18.6]} 32. e5
{[%clk 0:01:44.8]} 32... dxe5 {[%clk 0:00:15.8]} 33. d6 {[%clk 0:01:42.2]} 33...
Re6 {[%clk 0:00:07.7]} 34. fxe5 {[%clk 0:01:38.9]} 34... fxe5 {[%clk 0:00:06]}
35. Rxe5 {[%clk 0:01:37.7]} 35... Rxe5 {[%clk 0:00:05.2]} 36. Rxe5 {[%clk
0:01:37.6]} 36... Ne6 {[%clk 0:00:02.5]} 37. Qe4 {[%clk 0:01:37.5]} 37... Nd4
{[%clk 0:00:01.3]} 38. Re7 {[%clk 0:01:35.5]} 38... Rxe7 {[%clk 0:00:01.2]} 39.
dxe7 {[%clk 0:01:35.1]} 1-0

[Event "*** Titled Tuesday Blitz"]
[Site "Chess.com"]
[Date "2020.04.07"]
[Round "1"]
[White "DucksParadise"]
[Black "Mops_2004"]
[Result "0-1"]
[WhiteElo "2059"]
[BlackElo "2520"]
[TimeControl "180+1"]
[EndTime "13:06:16 PDT"]
[Termination "Mops_2004 won by resignation"]

1. e4 {[%clk 0:02:53.9]} 1... d6 {[%clk 0:02:58.9]} 2. d4 {[%clk 0:02:51.6]}
2... Nf6 {[%clk 0:02:58.4]} 3. Nc3 {[%clk 0:02:51.6]} 3... g6 {[%clk 0:02:57.6]}
4. Nf3 {[%clk 0:02:51.9]} 4... Bg7 {[%clk 0:02:56.2]} 5. Be2 {[%clk 0:02:51.8]}
5... O-O {[%clk 0:02:55.9]} 6. O-O {[%clk 0:02:49.9]} 6... c6 {[%clk 0:02:55.8]}
7. h3 {[%clk 0:02:41.7]} 7... Qc7 {[%clk 0:02:55]} 8. a4 {[%clk 0:02:29.6]} 8...
Nbd7 {[%clk 0:02:53.2]} 9. Re1 {[%clk 0:02:12.7]} 9... e5 {[%clk 0:02:50.8]} 10.
dxe5 {[%clk 0:02:08.1]} 10... dxe5 {[%clk 0:02:48.3]} 11. Be3 {[%clk 0:02:08.3]}
11... Rd8 {[%clk 0:02:44]} 12. Qb1 {[%clk 0:02:00.5]} 12... Nf8 {[%clk
0:02:39.5]} 13. Bc4 {[%clk 0:01:59.4]} 13... Be6 {[%clk 0:02:31.9]} 14. Qa2
{[%clk 0:01:58.5]} 14... Bxc4 {[%clk 0:02:25.4]} 15. Qxc4 {[%clk 0:01:59.4]}
15... Ne6 {[%clk 0:02:25.4]} 16. a5 {[%clk 0:01:39.8]} 16... b5 {[%clk
0:02:12.5]} 17. axb6 {[%clk 0:01:22.9]} 17... axb6 {[%clk 0:02:13.4]} 18. Qb3
{[%clk 0:00:59.6]} 18... Rxa1 {[%clk 0:02:03.1]} 19. Rxa1 {[%clk 0:01:00.5]}
19... Nd4 {[%clk 0:02:02.5]} 20. Bxd4 {[%clk 0:00:31.6]} 20... exd4 {[%clk
0:02:03.4]} 21. Ne2 {[%clk 0:00:31.7]} 21... Nxe4 {[%clk 0:02:00.9]} 22. Qc4
{[%clk 0:00:25.5]} 22... c5 {[%clk 0:01:51.1]} 23. c3 {[%clk 0:00:21.5]} 23...
Nd6 {[%clk 0:01:44.9]} 24. Qd3 {[%clk 0:00:20.6]} 24... c4 {[%clk 0:01:43.5]}
25. Qd2 {[%clk 0:00:19.8]} 25... d3 {[%clk 0:01:42.7]} 26. Ned4 {[%clk
0:00:18.8]} 26... Re8 {[%clk 0:01:38.4]} 27. b3 {[%clk 0:00:16.7]} 27... Ne4
{[%clk 0:01:24]} 28. Qc1 {[%clk 0:00:13.5]} 28... cxb3 {[%clk 0:01:21.3]} 29.
Rb1 {[%clk 0:00:08.8]} 29... Qxc3 {[%clk 0:01:13.3]} 30. Qxc3 {[%clk 0:00:05.1]}
30... Nxc3 {[%clk 0:01:14.2]} 31. Rxb3 {[%clk 0:00:05.5]} 31... Bxd4 {[%clk
0:01:14.1]} 32. Nxd4 {[%clk 0:00:04.7]} 32... d2 {[%clk 0:01:14.2]} 0-1